Cogmind - Beta 16.1 @@@ ROGUE MODE // 2026.05.01 @ 23:56:44 Player: KURIIRI Result: Self-destructed Performance ------------- Evolutions (4) 2000 Regions Visited (6) 1200 Robots Destroyed (83) 415 Value Destroyed (2102) 2102 Prototype IDs (22) 440 Alien Tech Used (0) 0 Bonus (684) 684 TOTAL SCORE: 6841 Bonus ------- Follower Combat Kills 180 Registered with UFD 300 Met Optimus in HQ 500 Friendly Fire -296 Cogmind --------- Core Integrity 687/850 Matter 234/300 Energy 160/160 System Corruption 3% Temperature Cool (0) Movement Flying (37) Location -6/Factory Parts ------- > --- POWER (1) -------- Light Fission Core > --- PROPULSION (5) --- Biomechanical Wings Flightbrick > --- UTILITY (7+1) ---- Medium Storage Unit Enhanced Optical Array Advanced Sensor Array Advanced Signal Interpreter Hacking Suite Improved Hacking Suite Improved Hacking Suite Improved System Shield (+) > --- WEAPON (2) ------- Multitool Powered Hammer > --- INVENTORY (10) --- Nuclear Pulse Thruster IFF Parser Core Analyzer Hacking Suite Improved System Shield Authchip [Weapon] System Restoration Module Ion Cannon Tiamat Missile Launcher Peak State ------------ > --- POWER ------------ Micro Fission Core > --- PROPULSION ------- Biomechanical Wings Flightbrick > --- UTILITY ---------- Medium Storage Unit Enhanced Optical Array Advanced Sensor Array Advanced Signal Interpreter Advanced Targeting Computer Hacking Suite Improved Hacking Suite Improved Hacking Suite Improved System Shield > --- WEAPON ----------- Tiamat Missile Launcher Powered Hammer > --- INVENTORY -------- Light Fission Core Nuclear Pulse Thruster Advanced Sensor Array IFF Parser Core Analyzer Improved Hacking Suite Authchip [Weapon] Ion Cannon Multitool [Rating: 99] Favorites ----------- Power Light Ion Engine Engine Light Ion Engine Power Core Light Fission Core Propulsion Light Treads Treads Light Treads Leg Aluminum Leg Wheel Compact Wheel Flight Unit Flightbrick Utility Enhanced Optical Array Device Advanced Sensor Array Storage High-capacity Storage Unit Processor Enhanced Optical Array Hackware Improved System Shield Protection Scrap Shield Weapon Light EM Pulse Cannon Energy Gun Small Laser Energy Cannon Light EM Pulse Cannon Ballistic Gun Subdweller Machine Gun Ballistic Cannon Improved Light Cannon Launcher Tiamat Missile Launcher Special Weapon Multitool Impact Weapon Powered Hammer Special Melee Weapon Improved Datajack Build | -11 -10 -10 -8 -6 -6 -6 ------- Run | Yrd Mat Sub Scr Fac Was Fac Slots Evolved 8 | . . . . 8 . . Power . | . . . . . . . Propulsion 3 | . . . . 3 . . Utility 5 | . . . . 5 . . Weapon . | . . . . . . . Parts Attached 72 | . 17 14 2 27 1 11 Power 11 | . 1 3 . 5 . 2 Engine 7 | . 1 3 . 3 . . Core 4 | . . . . 2 . 2 Reactor . | . . . . . . . Propulsion 10 | . 4 1 . 4 . 1 Treads 4 | . 3 1 . . . . Leg . | . . . . . . . Wheel 1 | . 1 . . . . . Hover . | . . . . . . . Flight 5 | . . . . 4 . 1 Utility 28 | . 4 5 1 11 1 6 Device 7 | . 1 1 . 4 1 . Storage 3 | . 1 1 . 1 . . Processor 5 | . 1 . 1 3 . . Hackware 6 | . . . . 2 . 4 Protection 7 | . 1 3 . 1 . 2 Artifact . | . . . . . . . Weapon 23 | . 8 5 1 7 . 2 Energy Gun 1 | . . 1 . . . . Energy Cannon 9 | . 5 2 1 . . 1 Ballistic Gun 3 | . 1 2 . . . . Ballistic Cannon 3 | . 2 . . 1 . . Launcher 2 | . . . . 1 . 1 Special Weapon 2 | . . . . 2 . . Impact Weapon 2 | . . . . 2 . . Slashing Weapon . | . . . . . . . Piercing Weapon . | . . . . . . . Special Melee Weapon 1 | . . . . 1 . . Unidentified Prototypes 1 | . . . . 1 . . Parts Lost 16 | . 2 3 . 4 . 7 Power 4 | . 1 1 . 1 . 1 Propulsion 2 | . 1 . . 1 . . Utility 6 | . . 1 . . . 5 Weapon 4 | . . 1 . 2 . 1 Highest Loss Streak 3 | . 1 1 . 3 . 3 To Critical Strikes . | . . . . . . . Average Backups 10 | 6 13 7 13 9 9 9 Power . | 1 . . . 1 1 . Propulsion 3 | 4 6 2 4 1 1 1 Utility 3 | . 1 . 5 3 3 4 Weapon 2 | 1 4 3 2 1 2 2 Tool/Special . | . . . . . . . Unused Backups 39 | . 9 7 9 4 1 9 Power 1 | . . . . 1 . . Propulsion 15 | . 4 4 3 1 1 2 Utility 17 | . 3 3 3 2 . 6 Weapon 6 | . 2 . 3 . . 1 Tool/Special . | . . . . . . . Average Slot Usage (%) 81 | . 99 86 79 65 74 73 Engine 10 | . 13 13 14 2 . . Core 1 | . . . . 2 5 5 Treads 20 | . 27 28 28 . . . Flight 3 | . . . . 10 11 11 Device 2 | . 1 . . 9 13 6 Storage 8 | . 14 4 14 5 5 5 Processor 9 | . 7 . 12 15 16 15 Hackware 3 | . . . . 10 11 17 Protection 3 | . 3 10 . . . 2 Energy Cannon 13 | . 23 25 10 1 . . Ballistic Cannon 1 | . 3 1 . . . . Impact Weapon 1 | . . . . 3 5 5 Peak Build Rating 99 | 6 10 14 21 93 94 99 Average Rating 33 | 6 9 11 16 80 91 91 On Entrance 34 | 6 6 9 14 21 88 94 Avg Prop Armor Cover (%) 5 | . 12 . . 1 . . Naked Turns . | . . . . . . . Heaviest Build 51 | 13 34 51 51 29 25 29 Greatest Support 40 | 20 40 40 40 30 30 30 Greatest Overweight (x) 1 | . 1 1 1 . . . Average Overweight (x) . | . . . 1 . . . Largest Inventory Capacity 20 | 8 15 20 20 20 10 10 Average Capacity 13 | 8 14 8 20 10 10 10 Most Carried 20 | 6 15 20 20 17 10 10 Average Carried 11 | 6 13 7 17 9 9 9 Final Capacity 20 | 8 15 20 20 10 10 10 Final Carried 20 | 6 15 20 18 10 10 9 Class Distribution -------------------- 70% | Mutant 24% | Hacker-Scout 3% | Scout Dominant Class ---------------- Mutant | -10/Materials Mutant | -10/Subcaves Mutant | -8/Scraptown Hacker-Scout | -6/Factory Hacker-Scout | -6/Waste Hacker-Scout | -6/Factory Resources | -11 -10 -10 -8 -6 -6 -6 ----------- Run | Yrd Mat Sub Scr Fac Was Fac Matter Collected 1800 | 224 469 312 120 340 20 315 Remotely . | . . . . . . . Salvage Created 2935 | 81 944 809 . 463 66 572 Parts 152 | 5 58 50 . 23 2 14 Haulers Intercepted 3 | . 2 . . 1 . . Recyclers Shooed 1 | . 1 . . . . . Parts Field Recycled . | . . . . . . . Retrieved Matter . | . . . . . . . Parts Self-Destructed 14 | . . 14 . . . . Prevented 1 | . . 1 . . . . Parts Restored . | . . . . . . . Kills | -11 -10 -10 -8 -6 -6 -6 ------- Run | Yrd Mat Sub Scr Fac Was Fac Combat Hostiles Destroyed 47 | . 22 15 . 2 . 8 Melee 6 | . . . . 2 . 4 Guns 2 | . . 2 . . . . Cannons 27 | . 18 9 . . . . AOE 6 | . 3 . . . . 3 Classes Destroyed 12 | 2 6 1 . 1 1 1 Worker 3 | . 3 . . . . . Builder 3 | . . . . . . 3 Tunneler 1 | 1 . . . . . . Hauler 3 | . 2 . . 1 . . Recycler 5 | 1 2 . . 1 . 1 Operator 5 | . 2 . . 1 . 2 Watcher 15 | . 3 . . 5 . 7 Swarmer 18 | . 11 2 . . . 5 Grunt 13 | . 11 1 . . . 1 Programmer 4 | . . . . 2 . 2 Subdweller 12 | . . 12 . . . . Martyr 1 | . . . . . 1 . Best Kill Streak 9 | 2 9 2 . 3 . 4 Combat Bots Only 5 | . 5 2 . 1 . 3 Max Kills in Single Turn 3 | 1 3 1 . 1 1 2 Gunslinging . | . . . . . . . Exploded 2 | . 2 . . . . 1 Melee 1 | . . . . 1 . 1 Uniques/NPCs Destroyed . | . . . . . . . Combat | -11 -10 -10 -8 -6 -6 -6 -------- Run | Yrd Mat Sub Scr Fac Was Fac Hostile Shots Fired 419 | . 81 59 . 85 . 194 Missed 185 | . 18 18 . 51 . 98 Hits 234 | . 63 41 . 34 . 96 Projectile 234 | . 63 41 . 34 . 96 Critical Strikes 5 | . 2 1 . 1 . 1 Damage Taken 3597 | . 623 851 . 807 . 1316 Core 353 | . 99 91 . 34 . 129 Absorbed by Shields . | . . . . . . . Redirected to Shielding 4 | . 4 . . . . . Regen/Repaired (Parts) 30 | . . . . . . 30 Core Remaining (%) 62 | 100 . . 24 . . . Volleys Fired 200 | 8 60 102 . 23 . 7 Largest 2 | 2 2 2 . 1 . 1 Hottest 120 | 60 120 112 . 85 . 60 Shots Fired 309 | 16 112 151 . 23 . 7 Gun 51 | 16 . 35 . . . . Cannon 253 | . 112 116 . 22 . 3 Launcher 4 | . . . . . . 4 Special 1 | . . . . 1 . . Kinetic 77 | 8 21 43 . 5 . . Thermal 111 | 8 65 18 . 17 . 3 Explosive 4 | . . . . . . 4 Electromagnetic 116 | . 26 90 . . . . Robot Hit Streak 23 | 6 7 22 . 23 . 3 Robot Miss Streak 4 | 3 4 2 . 1 . 2 Penetration Max . | . . . . . . . Secondary Targets . | . . . . . . . Shots Hit Robots 221 | 11 58 95 . 22 3 32 Core Hits 81 | 3 34 28 . 6 1 9 Critical Kills 4 | . . . . 1 . 3 Critical Parts Destroyed 6 | . . . . 2 . 4 Critical Strikes 12 | . 1 1 . 3 . 7 Meltdown 1 | . . . . 1 . . Corrupt 2 | . 1 1 . . . . Smash 9 | . . . . 2 . 7 Melee Attacks 139 | . . . . 49 3 87 Impact 137 | . . . . 48 3 86 Slashing . | . . . . . . . Piercing . | . . . . . . . Sneak Attacks 9 | . . . . 2 3 4 Combat Hostiles . | . . . . . . . Follow-up Attacks . | . . . . . . . Damage Inflicted 6825 | 123 1579 1807 . 1039 196 2081 Guns 426 | 123 . 303 . . . . Cannons 3071 | . 1244 1504 . 277 . 46 Explosions 947 | . 299 . . 100 . 548 Melee 2345 | . . . . 662 196 1487 Ramming 36 | . 36 . . . . . Kinetic 641 | 58 176 407 . . . . Thermal 1805 | 65 1039 278 . 377 . 46 Explosive 548 | . . . . . . 548 Electromagnetic 1450 | . 328 1122 . . . . Impact 2345 | . . . . 662 196 1487 Slashing . | . . . . . . . Piercing . | . . . . . . . Highest Corruption 3 | . . . . 3 3 3 Average Corruption 2 | . . . . 1 2 2 Corruption Purged 3 | . . . . . 3 . Corruption Blocked . | . . . . . . . Effects 23 | . . . . 1 2 20 Message Errors 5 | . . . . . . 5 Matter Fused 6 | . . . . 1 1 4 Heat Flow Errors 2 | . . . . . . 2 Energy Discharges 3 | . . . . . 1 2 Parts Rejected 2 | . . . . . . 2 Data Loss (minor) 4 | . . . . . . 4 Alerts 1 | . . . . . . 1 Overload Shots . | . . . . . . . Overflow Damage 1240 | . 145 . . 387 41 667 Projectiles 1 | . . . . 1 . . Explosions 391 | . 145 . . 166 . 80 Melee 848 | . . . . 220 41 587 Knockbacks 15 | . 3 2 . 4 1 5 Impact 11 | . 1 . . 4 1 5 Kinetic 4 | . 2 2 . . . . Secondary . | . . . . . . . Self-Inflicted Damage 497 | . 76 . . 421 . . Shots 5 | . 1 . . 4 . . Rammed 10 | . 10 . . . . . Targets Rammed 10 | . 10 . . . . . Kicked . | . . . . . . . Crushed . | . . . . . . . Highest Temperature 469 | 20 469 3 . 108 . 234 Average Temperature 104 | 20 126 2 . 29 . 87 Received Heat Transfer 306 | . 78 69 . 54 . 105 Effects 2 | . 2 . . . . . Shutdowns 1 | . 1 . . . . . Interference 1 | . 1 . . . . . Siege Activations . | . . . . . . . Martial Activations . | . . . . . . . Shielding Activations . | . . . . . . . Robots Disrupted . | . . . . . . . Combat Hostiles . | . . . . . . . Robots Corrupted 11 | . . 4 . 1 . 6 Combat Hostiles 5 | . . 4 . . . 1 Parts Fried 37 | . 2 14 . 1 . 20 Impact Corruptions 31 | . . . . 7 1 23 Robots Melted 2 | . 1 . . 1 . . Combat Hostiles 1 | . 1 . . . . . Parts Melted 4 | . 3 . . 1 . . Heat Transferred 2968 | 150 1854 507 . 383 . 74 Parts Sabotaged . | . . . . . . . Parts Stolen . | . . . . . . . Parts Stripped . | . . . . . . . Power Chain Reactions 1 | . 1 . . . . . Alert | -11 -10 -10 -8 -6 -6 -6 ------- Run | Yrd Mat Sub Scr Fac Was Fac Maximum Alert Level 1 | . 1 . . 1 . 1 Low Security (%) 78 | 100 74 . . 93 100 66 Level 1 21 | . 25 . . 6 . 33 Level 2 . | . . . . . . . Level 3 . | . . . . . . . Level 4 . | . . . . . . . Level 5 . | . . . . . . . High Security . | . . . . . . . Max Security . | . . . . . . . Peak Influence 364 | 5 297 . . 270 107 364 Initial 93 | . . . . . 93 21 Average 101 | 2 102 . . 92 69 113 Influence Increases 2620 | 10 791 70 . 786 38 925 Destroy 0b10 Robot/C 700 | . 440 60 . 40 . 160 Destroy 0b10 Robot/NC 175 | 10 60 . . 40 . 65 Destroy Leader 176 | . 90 10 . 32 . 44 Trap Triggered on 0b10 10 | . . . . 10 . . Successful Hack 195 | . 23 . . 76 . 96 Select Force Hacks 60 | . 60 . . . . . Disable Machine 180 | . 30 . . 75 . 75 Destroy Structure 194 | . 28 . . 63 38 65 Partial Spotted 90 | . . . . 75 . 15 Lose Combat Pursuer 840 | . 60 . . 375 . 405 Influence Decreases 2366 | 10 514 347 . 519 274 702 Entered New Map 317 | . . 133 . . 174 10 Time Decay 1743 | 10 494 204 . 479 50 506 Search Patrol Dispatched 100 | . . . . . . 100 Lost Part 140 | . 20 10 . 40 . 70 Lost Ally 60 | . . . . . 50 10 Purge Threat 6 | . . . . . . 6 Squads Dispatched 36 | . 6 . . 14 . 16 Investigation 23 | . 4 . . 9 . 10 Extermination 9 | . . . . 4 . 5 Reinforcement 4 | . 2 . . 1 . 1 Assault . | . . . . . . . Garrison . | . . . . . . . Intercept . | . . . . . . . Searches Triggered 1 | . . . . . . 1 Construction Impeded . | . . . . . . . Haulers Reinforced 1 | . . . . 1 . . Active Scanning Responses . | . . . . . . . Cargo Convoy Interrupts . | . . . . . . . Stealth | -11 -10 -10 -8 -6 -6 -6 --------- Run | Yrd Mat Sub Scr Fac Was Fac Distress Signals 2 | . . . . 1 . 1 Communications Jammed . | . . . . . . . Distress Signals . | . . . . . . . Times Spotted 149 | . 34 19 . 43 6 47 Peak Tracking Total 8 | . 5 2 . 7 6 8 Tactical Retreats 31 | . 3 1 . 13 . 14 Traps | -11 -10 -10 -8 -6 -6 -6 ------- Run | Yrd Mat Sub Scr Fac Was Fac Traps Triggered 8 | . 2 . . 1 . 5 Indirectly . | . . . . . . . Trap Hack Attempts 10 | . . . . 10 . . Triggered . | . . . . . . . Disarmed . | . . . . . . . Reprogrammed 1 | . . . . 1 . . Reused 1 | . . . . 1 . . Traps Extracted . | . . . . . . . Installed . | . . . . . . . Triggered 1 | . . . . 1 . . Machines | -11 -10 -10 -8 -6 -6 -6 ---------- Run | Yrd Mat Sub Scr Fac Was Fac Machines Disabled 13 | . 2 1 . 5 . 5 Max in Single Turn 4 | . 1 1 . 4 . 1 Garrison Access 4 | . . . . 1 . 3 Machines Repaired 1 | . . . . . . 1 Machines Dismantled . | . . . . . . . Machines Sabotaged . | . . . . . . . Overloaded Fab Kills . | . . . . . . . Hacking | -11 -10 -10 -8 -6 -6 -6 --------- Run | Yrd Mat Sub Scr Fac Was Fac Machines Accessed 63 | . 7 2 1 24 . 29 Terminals 30 | . 5 . . 10 . 15 Fabricators 6 | . . . . 2 . 4 Repair Stations 1 | . . . . . . 1 Recycling Units 14 | . 2 . . 8 . 4 Scanalyzers 4 | . . . . 2 . 2 Garrison Access 5 | . . . . 2 . 3 Total Hacks 222 | . 19 13 6 82 . 102 Successful 119 | . 6 13 6 42 . 52 Failed 101 | . 12 . . 39 . 50 Catastrophic 16 | . 2 . . 8 . 6 Database Lockouts 2 | . 1 . . 1 . . Manual 119 | . 15 . . 38 . 66 Terminals 101 | . 13 . . 30 . 58 Fabricators 22 | . . . . 8 . 14 Repair Stations 8 | . . . . . . 8 Recycling Units 32 | . 6 . . 16 . 10 Scanalyzers 31 | . . . . 24 . 7 Garrison Access 9 | . . . . 4 . 5 Terminal Hacks 38 | . 4 13 6 2 . 13 Record 18 | . . 12 6 . . . Part Schematic 1 | . . . . . . 1 Robot Analysis 1 | . 1 . . . . . Prototype ID Bank 2 | . 1 . . . . 1 Open Door 1 | . . . . 1 . . Terminal Index 1 | . . . . . . 1 Fabricator Index 1 | . . . . . . 1 Scanalyzer Index 1 | . . . . . . 1 Unreport Threat 1 | . . . . . . 1 Locate Traps 1 | . 1 . . . . . Recall Investigation 2 | . . . . . . 2 Recall Extermination 2 | . . . . . . 2 Hauler Manifests 1 | . . . . . . 1 Registered Components 3 | . 1 . . 1 . 1 Zone Layout 1 | . . . . . . 1 Proto ID Catalog 1 | . . 1 . . . . Fabricator Hacks 7 | . . . . 1 . 6 Network Status 1 | . . . . 1 . . Load Schematic 3 | . . . . . . 3 Build 3 | . . . . . . 3 Repair Station Hacks 3 | . . . . . . 3 Scan Component 2 | . . . . . . 2 Repair 1 | . . . . . . 1 Recycling Unit Hacks 1 | . . . . 1 . . Retrieve Components 1 | . . . . 1 . . Scanalyzer 25 | . . . . 20 . 5 Insert Component 10 | . . . . 7 . 3 Analyze 14 | . . . . 12 . 2 Retrieve Study 1 | . . . . 1 . . Garrison Access Hacks 4 | . . . . 1 . 3 Seal Access 4 | . . . . 1 . 3 Unauthorized Hacks 41 | . 2 . . 17 . 22 Terminals 23 | . . . . 7 . 16 Track 1 | . . . . . . 1 Assimilate 3 | . . . . . . 3 Botnet 9 | . . . . 2 . 7 Operators 2 | . . . . 1 . 1 Skim 8 | . . . . 4 . 4 Fabricators 4 | . . . . 2 . 2 Report 1 | . . . . 1 . . Prioritize 1 | . . . . . . 1 Haulers 1 | . . . . 1 . . Recompile 1 | . . . . . . 1 Repair Stations 1 | . . . . . . 1 Patch 1 | . . . . . . 1 Recycling Units 13 | . 2 . . 8 . 3 Tunnel 2 | . 2 . . . . . Fedlink 11 | . . . . 8 . 3 Scanalyzers . | . . . . . . . Garrison Access . | . . . . . . . Data Cores Recovered 1 | . 1 . . . . . Used . | . . . . . . . Hacking Detections 38 | . 5 . . 13 . 20 Full Trace Events 8 | . 2 . . 1 . 5 Feedback Events . | . . . . . . . Feedback Blocked . | . . . . . . . Robot Schematics Acquired . | . . . . . . . Robots Built . | . . . . . . . Authchips . | . . . . . . . Time . | . . . . . . . Total Robot Build Rating . | . . . . . . . Part Schematics Acquired 9 | . . . . 6 . 3 Parts Built 3 | . . . . . . 3 Authchips . | . . . . . . . Time 165 | . . . . . . 165 Total Part Build Rating 15 | . . . . . . 15 Part Studies Acquired 1 | . . . . 1 . . Parts Repaired 1 | . . . . . . 1 Time 39 | . . . . . . 39 Parts Recycled . | . . . . . . . Recycled Matter . | . . . . . . . Retrieved Matter . | . . . . . . . Retrieved Components . | . . . . . . . Parts Scanalyzed 8 | . . . . 6 . 2 Part Schematics Acquired 8 | . . . . 6 . 2 Parts Damaged . | . . . . . . . Bothacking | -11 -10 -10 -8 -6 -6 -6 ------------ Run | Yrd Mat Sub Scr Fac Was Fac Used RIF Installer . | . . . . . . . Robots Hacked . | . . . . . . . Non-combat . | . . . . . . . Combat . | . . . . . . . Robot Hacks Applied . | . . . . . . . Relay Couplers Released . | . . . . . . . Fabnet Peak Effective % . | . . . . . . . Robots Rewired . | . . . . . . . Allies Hacked . | . . . . . . . Hacks Repelled 1 | . . . . . . 1 Allies | -11 -10 -10 -8 -6 -6 -6 -------- Run | Yrd Mat Sub Scr Fac Was Fac Total Allies 20 | . . . . . 19 1 Largest Group 19 | . . . . . 19 1 Highest-Rated Group 684 | . . . . . 684 10 Highest-Rated Ally 50 | . . . . . 50 10 Initial UFD Resources 48 | . . . . 22 48 48 Total Orders . | . . . . . . . Ally Attacks 69 | . . . . . 69 . Total Damage 7010 | . . . . . 7010 . Kills 18 | . . . . . 18 . Allies Corrupted . | . . . . . . . Allies Melted . | . . . . . . . Intel | -11 -10 -10 -8 -6 -6 -6 ------- Run | Yrd Mat Sub Scr Fac Was Fac Active Infowar (turns) 7483 | . 227 217 3476 1630 108 1825 Optics 7256 | . . 217 3476 1630 108 1825 Sensors 3558 | . . . . 1630 108 1820 Terrain 227 | . 227 . . . . . Robot Analysis Total 1 | . 1 . . . . . Derelict Logs Recovered 8 | . . 3 5 . . . Drone Launches . | . . . . . . . Drone Recoveries . | . . . . . . . Exploration | -11 -10 -10 -8 -6 -6 -6 ------------- Run | Yrd Mat Sub Scr Fac Was Fac Turns Passed 12726 | 40 1647 3539 3937 1630 108 1825 Spaces Moved 10713 | 14 856 1805 1633 2887 213 3305 Core . | . . . . . . . Treads 4237 | . 799 1805 1633 . . . Legs 14 | 14 . . . . . . Wheels 57 | . 57 . . . . . Hover . | . . . . . . . Flight 6405 | . . . . 2887 213 3305 Fastest Speed 37 | 120 100 160 240 37 37 37 Average Speed 100 | 120 156 170 240 37 37 37 Slowest Speed 240 | 120 240 240 240 40 37 37 Overloaded Moves . | . . . . . . . Propulsion Burnouts . | . . . . . . . Robots Hopped 58 | . . . . 26 . 32 Potential Cave-ins . | . . . . . . . Cave-ins Triggered . | . . . . . . . Exploration Rate (%) 72 | 2 96 81 86 73 89 80 Regions Visited 6 Branch Regions 2 Pre-discovered Areas 6 | . 2 2 1 1 . . Known Exits Taken . | . . . . . . . Unknown Exits Taken 4 | 1 1 1 1 . . . Scrap Searched 10 | . . 4 6 . . . Spaces Dug 74 | . 1 3 . 36 . 34 Terrain Destroyed 183 | . 29 5 . 71 . 78 Melee 64 | . . . . 30 . 34 Projectile 17 | . 3 5 . 9 . . AOE 102 | . 26 . . 32 . 44 Terrain Rammed . | . . . . . . . Walls Destroyed . | . . . . . . . Machines Disabled . | . . . . . . . Actions | -11 -10 -10 -8 -6 -6 -6 --------- Run | Yrd Mat Sub Scr Fac Was Fac Total 12096 | 21 1045 2111 1657 3315 237 3710 Wait 766 | . 58 129 . 309 16 254 Move 10595 | 13 855 1804 1632 2838 212 3241 Hop 55 | . . . . 23 . 32 Pick Up 83 | . 25 25 11 11 3 8 Fast Attach 31 | . 6 6 2 10 . 7 Attach 27 | . 4 1 . 12 1 9 Detach 7 | . . . . 2 . 5 Swap 40 | . 11 14 . 9 . 6 Drop 75 | . 16 19 12 18 2 8 Fire 200 | 8 60 102 . 23 . 7 Melee 139 | . . . . 49 3 87 Ram . | . . . . . . . Kick . | . . . . . . . Crush 10 | . 10 . . . . . Escape Stasis 40 | . . . . . . 40 Rewire . | . . . . . . . Trap 10 | . . . . 10 . . Miscellaneous 18 | . . 11 . 1 . 6 Route ------- -11/Scrapyard -10/Materials (discovered 4 exits: [*Mat x2] / [*Min] / *Sub) -10/Subcaves (discovered 4 exits: [*Mat x2] / *Scr x2) -8/Scraptown (discovered 2 exits: *Fac x2) -6/Factory (discovered 4 exits: *Fac / *Low x2 / *Ext) -6/Waste -6/Factory (discovered 5 exits: *Fac x3 / *Low x2) History --------- Turn | Location | Event 16 | -11/Scrapyard | Discovered new exit (range 2) 41 | -11/Scrapyard | Entered Materials 42 | -10/Materials | Met a group of wandering Federalists 107 | -10/Materials | Discovered new exit (range 3) 323 | -10/Materials | Build established: Mutant 435 | -10/Materials | Discovered new exit (range 5) 556 | -10/Materials | Discovered new exit (range 14) 639 | -10/Materials | Central database locked down 1524 | -10/Materials | Discovered new exit (range 8) 1688 | -10/Materials | Entered Subcaves 1689 | -10/Subcaves | Continued accompanying wandering Federalists (5) 1689 | -10/Subcaves | Approached by a straggling Scientist 1690 | -10/Subcaves | Shifting Twisted Machinery released Mak. Light Armor Plating 1700 | -10/Subcaves | Shifting Twisted Machinery released Sub. Machine Gun 1785 | -10/Subcaves | Discovered new exit (range 12) 1901 | -10/Subcaves | Discovered new exit (range 6) 1967 | -10/Subcaves | Wandering Federalist uncovered a shortcut to Scraptown 2372 | -10/Subcaves | Scientist uncovered a shortcut to Scraptown 2444 | -10/Subcaves | Learned location of Zion (-7) 2444 | -10/Subcaves | Met a Zionite searching for "candidates" 2512 | -10/Subcaves | Learned location of Mines (-9) 2583 | -10/Subcaves | Disturbed a concealed Subdweller 3075 | -10/Subcaves | Core integrity fell below 50% 3343 | -10/Subcaves | Disturbed a concealed Subdweller 3599 | -10/Subcaves | Shifting Twisted Machinery released Sub. Shrapnel Launcher 4077 | -10/Subcaves | Visited Clippyterm 4081 | -10/Subcaves | Learned Research security intel 4081 | -10/Subcaves | Learned Factory emergency access door positions 4197 | -10/Subcaves | Learned Materials garrison access intel 4253 | -10/Subcaves | Learned Materials terminal intel 4320 | -10/Subcaves | Visited 4L-MR0's lab 4575 | -10/Subcaves | A swath of the cavern ceiling suddenly collapsed 5053 | -10/Subcaves | Found Flightbrick 5227 | -10/Subcaves | Entered Scraptown 5817 | -8/Scraptown | Heard Great Nut preacher, LISTEN AND RECITE! 5937 | -8/Scraptown | Scanned Subdweller tech in exchange for log data 5942 | -8/Scraptown | Learned Research garrison access intel 5944 | -8/Scraptown | Learned Factory trap positions 5947 | -8/Scraptown | Learned Factory interactive machine intel 5949 | -8/Scraptown | Learned Research stockpile data 5951 | -8/Scraptown | Learned 8 Factory zone layouts 6016 | -8/Scraptown | Visited Cave Peace 6050 | -8/Scraptown | Visited Cyclists 6129 | -8/Scraptown | Visited SPCMW 6148 | -8/Scraptown | Visited Assassins FH 6418 | -8/Scraptown | Visited UFD Registry 6418 | -8/Scraptown | Registered with UFD as "Shortrunner" 6531 | -8/Scraptown | Discovered new exit (range 13) 6574 | -8/Scraptown | Guru changed UFD alias to "Flakdisc" 6672 | -8/Scraptown | Visited Comm Corps 6768 | -8/Scraptown | Visited The Evicted 6896 | -8/Scraptown | Visited CR-KLE's Repair Center 7112 | -8/Scraptown | Visited Junk Repository 7172 | -8/Scraptown | Visited Junk Repository 7284 | -8/Scraptown | Delivered Scrap Shield to a Scientist 7582 | -8/Scraptown | Visited A0-MCA Data Center 7640 | -8/Scraptown | Visited Scrapoid Pod Storage 7671 | -8/Scraptown | Visited DA-N13 Charitable Foundation 7693 | -8/Scraptown | Found DCF Scrap (26 items) 7793 | -8/Scraptown | Visited LU-1G1's Boring Crew 7827 | -8/Scraptown | Visited Derelict Rescue Squad 7899 | -8/Scraptown | Visited Junk Cannon Lab 9020 | -8/Scraptown | Met Optimus 9020 | -8/Scraptown | Accepted into 0bPrime 9159 | -8/Scraptown | Discovered new exit (range 3) 9164 | -8/Scraptown | Entered Factory 9164 | -6/Factory | Evolved 8 slots: Propulsion x3, Utility x5 9166 | -6/Factory | Loaded intel: 102 trap records 9168 | -6/Factory | Loaded intel: 56 interactive machine locations 9169 | -6/Factory | Attached Flightbrick, gained temporary slots: Utility x3 9211 | -6/Factory | Discovered new exit (range 19) 9354 | -6/Factory | Central database locked down 9440 | -6/Factory | Discovered new exit (range 6) 9441 | -6/Factory | Identified exit to Extension 9557 | -6/Factory | Discovered new exit (range 10) 9558 | -6/Factory | Spotted B-75 Beast 9570 | -6/Factory | Attached CPS modules to O-24 Administrator. 9612 | -6/Factory | Lost 3 parts (1p1n1w) 9695 | -6/Factory | Build established: Hacker-Scout 9765 | -6/Factory | Loaded intel: 8 recycling unit locations 9896 | -6/Factory | Learned location of Protoforge (-3) 10258 | -6/Factory | Discovered new exit (range 6) 10265 | -6/Factory | Identified exit to Lower Caves 10794 | -6/Factory | Manually triggered Chute Trap 10794 | -6/Factory | Sucked down chute 10794 | -6/Factory | Entered Waste 10812 | -6/Waste | Spotted C-40 Crusher 10824 | -6/Waste | Warlord forces began an assault 10829 | -6/Waste | Spotted C-40 Crusher 10831 | -6/Waste | Spotted C-40 Crusher 10833 | -6/Waste | Spotted C-40 Crusher 10833 | -6/Waste | Spotted C-40 Crusher 10838 | -6/Waste | Spotted C-40 Crusher 10860 | -6/Waste | Allies destroyed C-40 Crusher 10860 | -6/Waste | Allies destroyed C-40 Crusher 10860 | -6/Waste | Discovered new exit (range 22) 10867 | -6/Waste | Allies destroyed C-40 Crusher 10898 | -6/Waste | Lost 15 allies 10902 | -6/Waste | Identified exit to Factory 10902 | -6/Waste | Entered Factory 10951 | -6/Factory | Loaded intel: 8 recycling unit locations 11023 | -6/Factory | Repaired Broken Mic. Fission Core 11166 | -6/Factory | Discovered new exit (range 22) 11184 | -6/Factory | Spotted B-75 Beast 11254 | -6/Factory | Lost 3 parts (2u1w) 11397 | -6/Factory | Fabricated Imp. Hacking Suite? 11443 | -6/Factory | Fabricated Imp. Hacking Suite? 11502 | -6/Factory | Discovered new exit (range 5) 11503 | -6/Factory | Identified exit to Factory 11579 | -6/Factory | Discovered exit to Factory (range 12) 11644 | -6/Factory | Fabricated Imp. Hacking Suite (x1) 11931 | -6/Factory | Discovered exit to Lower Caves (range 11) 12134 | -6/Factory | Discovered exit to Lower Caves (range 19) 12244 | -6/Factory | Watched by a mysterious "MATRIX" hacker. 12652 | -6/Factory | Search patrols dispatched 12727 | -6/Factory | Self-destructed Last Messages --------------- 12638_ System corrupted: Component data lost. 12648_ Acquired 3 matter. 12649_ Acquired 4 matter. 12652_ ALERT: Heightened foreign activity detected, multiple search patrols dispatched. 12660_ K-01 Serf cleans the Terminal. 12667_ Connecting with Terminal... 12678_ K-01 Serf cleans the Terminal. 12680_ Connecting with Terminal... 12682_ K-01 Serf cleans the Terminal. 12683_ W-25 Informer suffers critical hit (Smash). 12683_ Destroyed Imp. Hover Unit. 12683_ W-25 Informer system corrupted by crushing effect. 12683_ W-25 Informer destroyed. 12685_ Acquired 19 matter. 12694_ Acquired 11 matter. 12723_ Connecting with Terminal... 12724_ Acquired Hacking Suite. Map ----- +----------------------------------------------------+ | ??# """"" #?????????????????????????????????????? | | ??# #?????????????????????????????????????? | | ??##########?????????????????????????????????????? | | ?????????????????????????????????????????????????? | | ?????????????????????????????????????????????????? | | ##???????????????????????????????????????????????? | | #???????????????????????????????????????????????? | | #???????????????????????????????????????????????? | | #???????????????????????????????????????????????? | | #???????????????????#####???????????????????????? | | #?????????????????#?? ????? #????????????????? | | #?????????????????# ???? #????????????????? | | #?????????????????#! ? #????????????????? | | #?????????????????# #????????????????? | | #?????????????????# """ """ #????????????????? | | #?????????????????# """ """ #????????????????? | | #?????????????????# """ """ #????????????????? | | #?????????????????# #????????????????? | | #?????????????????# """ """ #????????????????? | | #?????????????????# """ """ #????????????????? | | #?????????????????# """ """ #?"""#???????????? | | #?????????????????# #?"Y"#???????????? | | ##########################+#######" "####????????? | | R #????????? | | #????????? | | R @ """ #????????? | | ######### ##########;#### "Y" #????????? | | # #???# ! ! # " " ""#??????? | | # #???# # """ Y"#??????? | | """" + #???# "T" !# / """ ""???????? | | """" # #???# """ # """ #????????? | | ] """" # #???########+## #????????? | | """" # m#????????????? #????????? | | """" # #?????????????#####""Y""# ??????? | | """" # #??????????????????"""""#? ####?????? | | # #??????????????????######?? #????????? | | ? # #???????????????????????????#????????? | | ? # #????????????????????????????????????? | | ??####### #????????????????????????????????????? | | ????????# #????????????????????????????????????? | | ###????? ????????????????????????????????????? | | ????????????????????????????????????? | | ? ????????????????????????????????????? | | ????????????????????????????????????? | | ######## ????????????????????????????????????? | | ?????????#+#?????????????????????????????????????? | | ?????????????????????????????????????????????????? | | ?????????????????????????????????????????????????? | | ?????????????????????????????????????????????????? | | ?????????????????????????????????????????????????? | +----------------------------------------------------+ Best States ------------- Heat Dissipation 37 Energy Generation 18 Energy Capacity 290 Matter Stores 300 Matter Capacity 300 Sight Range 22 Robot Scan Range 16 Terrain Scan Range 14 Terrain Scan Density 10 Armor Coverage 800 Core Shielding 20 Evasion (%) 70 Targeting Accuracy 8 Recoil Reduction 2 Offensive Hacking 46 Defensive Hacking 23 Authchip Count 1 Item Schematics ----------------- Multitool | -6/Factory | Scanalyzed Enh. Optical Array | -6/Factory | Scanalyzed Adv. Sensor Array | -6/Factory | Scanalyzed Imp. System Restoration Module | -6/Factory | Scanalyzed IFF Parser | -6/Factory | Scanalyzed Imp. Datajack | -6/Factory | Scanalyzed Imp. Hacking Suite | -6/Factory | Hacked Tiamat Missile Launcher | -6/Factory | Scanalyzed Biomechanical Wings | -6/Factory | Scanalyzed Robot Schematics ------------------ None Fabricated ------------ Imp. Hacking Suite | x1 | -6/Factory Imp. Hacking Suite | x1 | -6/Factory Imp. Hacking Suite | x1 | -6/Factory Repaired ---------- Mic. Fission Core | 96% | -6/Factory | Broken Studied --------- Lgt. Deuterium Engine | -6/Factory | Hacked Alien Tech Used ----------------- None Achievements -------------- Bending The Rules Challenges ------------ None Game ------ Seed GyrokineticWarlordMount Manual? 0 Play Time 01:44:20 Cumulative 437.2 hours Start 2026.05.01 @ 18:56:38 End 2026.05.01 @ 23:56:44 Sessions 3 Manual Loads 0 Difficulty Rogue Special Mode None Game No. 367 Rogue 331 Adventurer 36 Explorer 0 Win Type - Total 5 Types 2/0/0/1/0/0/0/2/0/0 Lore% 81 Gallery% 69 Achievement% 60 Wizard Run 0 Options --------- Layout 2 ASCII 0 Keyboard 0 Movement Numpad Keybinds 0 Fullscreen 1 Font 48/Smallcaps Map View 50x44 Zoom Use 0% Tactical HUD 1 Map Filters NONE Filters NONE Steam 1 RUN: 6db2512c-6db0-4d9f-911b-a8bf88f897e9